{"text_format":"3","workbook":"xlsx","n_sheets":5,"sheets":["Összefoglaló","Kiadások és bevétel","Költségvetési jelentés","Adatlisták","Kategória kimutatás"],"not_rendered":{"charts":3,"defined_names":18,"pivot_tables":2},"read":"whole","date_system":"1900"}

{"sheet":"Összefoglaló","index":0,"n_rows":21,"n_cols":16,"rows_kept":21,"merged":[[5,2,5,3],[8,9,8,10],[9,9,9,10],[10,9,10,10]]}
[]
[null,null,"Félhavi otthoni költségvetés",{"$nulls":12},"ÖSSZEFOGLALÓ"]
[]
[]
[]
[null,null,{"$f":"CHOOSE(HónapSzáma,\"Január\",\"Február\",\"Március\",\"Április\",\"Május\",\"Június\",\"Július\",\"Augusztus\",\"Szeptember\",\"Október\",\"November\",\"December\")","v":"Augusztus"},null,8,{"$nulls":5},2012]
[]
[]
[null,null,"HAVI ÖSSZEGEK","Monthly Totals",{"$nulls":5},"ÉVI ÖSSZEGEK",null,"Annual Totals"]
[null,null,"BEVÉTEL","Kiadások",{"$f":"SUMIF(Kiadások[DÁTUM],\"<=\"&DátumHónapVége,Kiadások[ÖSSZEG])-SUMIF(Kiadások[DÁTUM],\"<\"&DátumHónapEleje,Kiadások[ÖSSZEG])","v":{"v":0,"d":"0 Ft"}},{"$nulls":4},"BEVÉTEL",null,"Kiadások",{"$f":"SUM(IF(YEAR(Kiadások[DÁTUM])=K6,Kiadások[ÖSSZEG]))","v":{"v":8675,"d":"8,675 Ft"}}]
[null,null,"KIADÁSOK","bevétel",{"$f":"SUMIF(bevétel[DÁTUM],\"<=\"&DátumHónapVége,bevétel[ÖSSZEG])-SUMIF(bevétel[DÁTUM],\"<\"&DátumHónapEleje,bevétel[ÖSSZEG])","v":{"v":0,"d":"0 Ft"}},{"$nulls":4},"KIADÁSOK",null,"bevétel",{"$f":"SUM(IF(YEAR(bevétel[DÁTUM])=K6,bevétel[ÖSSZEG]))","v":{"v":12700,"d":"12,700 Ft"}}]
[]
[]
[]
[]
[]
[{"$nulls":3},"JANUÁR","FEBRUÁR","MÁRCIUS","ÁPRILIS","MÁJUS","JÚNIUS","JÚLIUS","AUGUSZTUS","SZEPTEMBER","OKTÓBER","NOVEMBER","DECEMBER"]
[null,null,"Bevétel 1–15",{"$f":"SUMIFS(bevétel[ÖSSZEG],bevétel[LEÍRÁS],\"<=\"&DátumKözepe,bevétel[LEÍRÁS],\">=\"&DátumEleje)","v":{"v":0,"d":"0.00 Ft"}},{"$f":"SUMIFS(bevétel[ÖSSZEG],bevétel[LEÍRÁS],\"<=\"&DátumKözepe,bevétel[LEÍRÁS],\">=\"&DátumEleje)","v":{"v":0,"d":"0.00 Ft"}},{"$f":"SUMIFS(bevétel[ÖSSZEG],bevétel[LEÍRÁS],\"<=\"&DátumKözepe,bevétel[LEÍRÁS],\">=\"&DátumEleje)","v":{"v":0,"d":"0.00 Ft"}},{"$f":"SUMIFS(bevétel[ÖSSZEG],bevétel[LEÍRÁS],\"<=\"&DátumKözepe,bevétel[LEÍRÁS],\">=\"&DátumEleje)","v":{"v":0,"d":"0.00 Ft"}},{"$f":"SUMIFS(bevétel[ÖSSZEG],bevétel[LEÍRÁS],\"<=\"&DátumKözepe,bevétel[LEÍRÁS],\">=\"&DátumEleje)","v":{"v":0,"d":"0.00 Ft"}},{"$f":"SUMIFS(bevétel[ÖSSZEG],bevétel[LEÍRÁS],\"<=\"&DátumKözepe,bevétel[LEÍRÁS],\">=\"&DátumEleje)","v":{"v":0,"d":"0.00 Ft"}},{"$f":"SUMIFS(bevétel[ÖSSZEG],bevétel[LEÍRÁS],\"<=\"&DátumKözepe,bevétel[LEÍRÁS],\">=\"&DátumEleje)","v":{"v":0,"d":"0.00 Ft"}},{"$f":"SUMIFS(bevétel[ÖSSZEG],bevétel[LEÍRÁS],\"<=\"&DátumKözepe,bevétel[LEÍRÁS],\">=\"&DátumEleje)","v":{"v":0,"d":"0.00 Ft"}},{"$f":"SUMIFS(bevétel[ÖSSZEG],bevétel[LEÍRÁS],\"<=\"&DátumKözepe,bevétel[LEÍRÁS],\">=\"&DátumEleje)","v":{"v":0,"d":"0.00 Ft"}},{"$f":"SUMIFS(bevétel[ÖSSZEG],bevétel[LEÍRÁS],\"<=\"&DátumKözepe,bevétel[LEÍRÁS],\">=\"&DátumEleje)","v":{"v":0,"d":"0.00 Ft"}},{"$f":"SUMIFS(bevétel[ÖSSZEG],bevétel[LEÍRÁS],\"<=\"&DátumKözepe,bevétel[LEÍRÁS],\">=\"&DátumEleje)","v":{"v":0,"d":"0.00 Ft"}},{"$f":"SUMIFS(bevétel[ÖSSZEG],bevétel[LEÍRÁS],\"<=\"&DátumKözepe,bevétel[LEÍRÁS],\">=\"&DátumEleje)","v":{"v":0,"d":"0.00 Ft"}}]
[null,null,"Bevétel 16–EOM",{"$f":"SUMIFS(bevétel[ÖSSZEG],bevétel[LEÍRÁS],\"<=\"&DátumVége,bevétel[LEÍRÁS],\">=\"&DátumKözepe+1)","v":{"v":0,"d":"0.00 Ft"}},{"$f":"SUMIFS(bevétel[ÖSSZEG],bevétel[LEÍRÁS],\"<=\"&DátumVége,bevétel[LEÍRÁS],\">=\"&DátumKözepe+1)","v":{"v":0,"d":"0.00 Ft"}},{"$f":"SUMIFS(bevétel[ÖSSZEG],bevétel[LEÍRÁS],\"<=\"&DátumVége,bevétel[LEÍRÁS],\">=\"&DátumKözepe+1)","v":{"v":0,"d":"0.00 Ft"}},{"$f":"SUMIFS(bevétel[ÖSSZEG],bevétel[LEÍRÁS],\"<=\"&DátumVége,bevétel[LEÍRÁS],\">=\"&DátumKözepe+1)","v":{"v":0,"d":"0.00 Ft"}},{"$f":"SUMIFS(bevétel[ÖSSZEG],bevétel[LEÍRÁS],\"<=\"&DátumVége,bevétel[LEÍRÁS],\">=\"&DátumKözepe+1)","v":{"v":0,"d":"0.00 Ft"}},{"$f":"SUMIFS(bevétel[ÖSSZEG],bevétel[LEÍRÁS],\"<=\"&DátumVége,bevétel[LEÍRÁS],\">=\"&DátumKözepe+1)","v":{"v":0,"d":"0.00 Ft"}},{"$f":"SUMIFS(bevétel[ÖSSZEG],bevétel[LEÍRÁS],\"<=\"&DátumVége,bevétel[LEÍRÁS],\">=\"&DátumKözepe+1)","v":{"v":0,"d":"0.00 Ft"}},{"$f":"SUMIFS(bevétel[ÖSSZEG],bevétel[LEÍRÁS],\"<=\"&DátumVége,bevétel[LEÍRÁS],\">=\"&DátumKözepe+1)","v":{"v":0,"d":"0.00 Ft"}},{"$f":"SUMIFS(bevétel[ÖSSZEG],bevétel[LEÍRÁS],\"<=\"&DátumVége,bevétel[LEÍRÁS],\">=\"&DátumKözepe+1)","v":{"v":0,"d":"0.00 Ft"}},{"$f":"SUMIFS(bevétel[ÖSSZEG],bevétel[LEÍRÁS],\"<=\"&DátumVége,bevétel[LEÍRÁS],\">=\"&DátumKözepe+1)","v":{"v":0,"d":"0.00 Ft"}},{"$f":"SUMIFS(bevétel[ÖSSZEG],bevétel[LEÍRÁS],\"<=\"&DátumVége,bevétel[LEÍRÁS],\">=\"&DátumKözepe+1)","v":{"v":0,"d":"0.00 Ft"}},{"$f":"SUMIFS(bevétel[ÖSSZEG],bevétel[LEÍRÁS],\"<=\"&DátumVége,bevétel[LEÍRÁS],\">=\"&DátumKözepe+1)","v":{"v":0,"d":"0.00 Ft"}}]
[null,null,"Kiadások 1–15",{"$f":"SUMIFS(Kiadások[ÖSSZEG],Kiadások[DÁTUM],\"<=\"&DátumKözepe,Kiadások[DÁTUM],\">=\"&DátumEleje)","v":{"v":0,"d":"0.00 Ft"}},{"$f":"SUMIFS(Kiadások[ÖSSZEG],Kiadások[DÁTUM],\"<=\"&DátumVége,Kiadások[DÁTUM],\">=\"&DátumEleje)","v":{"v":0,"d":"0.00 Ft"}},{"$f":"SUMIFS(Kiadások[ÖSSZEG],Kiadások[DÁTUM],\"<=\"&DátumVége,Kiadások[DÁTUM],\">=\"&DátumEleje)","v":{"v":0,"d":"0.00 Ft"}},{"$f":"SUMIFS(Kiadások[ÖSSZEG],Kiadások[DÁTUM],\"<=\"&DátumVége,Kiadások[DÁTUM],\">=\"&DátumEleje)","v":{"v":0,"d":"0.00 Ft"}},{"$f":"SUMIFS(Kiadások[ÖSSZEG],Kiadások[DÁTUM],\"<=\"&DátumVége,Kiadások[DÁTUM],\">=\"&DátumEleje)","v":{"v":0,"d":"0.00 Ft"}},{"$f":"SUMIFS(Kiadások[ÖSSZEG],Kiadások[DÁTUM],\"<=\"&DátumVége,Kiadások[DÁTUM],\">=\"&DátumEleje)","v":{"v":0,"d":"0.00 Ft"}},{"$f":"SUMIFS(Kiadások[ÖSSZEG],Kiadások[DÁTUM],\"<=\"&DátumVége,Kiadások[DÁTUM],\">=\"&DátumEleje)","v":{"v":0,"d":"0.00 Ft"}},{"$f":"SUMIFS(Kiadások[ÖSSZEG],Kiadások[DÁTUM],\"<=\"&DátumVége,Kiadások[DÁTUM],\">=\"&DátumEleje)","v":{"v":0,"d":"0.00 Ft"}},{"$f":"SUMIFS(Kiadások[ÖSSZEG],Kiadások[DÁTUM],\"<=\"&DátumVége,Kiadások[DÁTUM],\">=\"&DátumEleje)","v":{"v":1075,"d":"1,075.00 Ft"}},{"$f":"SUMIFS(Kiadások[ÖSSZEG],Kiadások[DÁTUM],\"<=\"&DátumVége,Kiadások[DÁTUM],\">=\"&DátumEleje)","v":{"v":5500,"d":"5,500.00 Ft"}},{"$f":"SUMIFS(Kiadások[ÖSSZEG],Kiadások[DÁTUM],\"<=\"&DátumVége,Kiadások[DÁTUM],\">=\"&DátumEleje)","v":{"v":1750,"d":"1,750.00 Ft"}},{"$f":"SUMIFS(Kiadások[ÖSSZEG],Kiadások[DÁTUM],\"<=\"&DátumVége,Kiadások[DÁTUM],\">=\"&DátumEleje)","v":{"v":1567,"d":"1,567.00 Ft"}}]
[null,null,"Kiadások 16–EOM",{"$f":"SUMIFS(Kiadások[ÖSSZEG],Kiadások[DÁTUM],\"<=\"&DátumVége,Kiadások[DÁTUM],\">=\"&DátumKözepe+1)","v":{"v":0,"d":"0.00 Ft"}},{"$f":"SUMIFS(Kiadások[ÖSSZEG],Kiadások[DÁTUM],\"<=\"&DátumVége,Kiadások[DÁTUM],\">=\"&DátumKözepe+1)","v":{"v":0,"d":"0.00 Ft"}},{"$f":"SUMIFS(Kiadások[ÖSSZEG],Kiadások[DÁTUM],\"<=\"&DátumVége,Kiadások[DÁTUM],\">=\"&DátumKözepe+1)","v":{"v":0,"d":"0.00 Ft"}},{"$f":"SUMIFS(Kiadások[ÖSSZEG],Kiadások[DÁTUM],\"<=\"&DátumVége,Kiadások[DÁTUM],\">=\"&DátumKözepe+1)","v":{"v":0,"d":"0.00 Ft"}},{"$f":"SUMIFS(Kiadások[ÖSSZEG],Kiadások[DÁTUM],\"<=\"&DátumVége,Kiadások[DÁTUM],\">=\"&DátumKözepe+1)","v":{"v":0,"d":"0.00 Ft"}},{"$f":"SUMIFS(Kiadások[ÖSSZEG],Kiadások[DÁTUM],\"<=\"&DátumVége,Kiadások[DÁTUM],\">=\"&DátumKözepe+1)","v":{"v":0,"d":"0.00 Ft"}},{"$f":"SUMIFS(Kiadások[ÖSSZEG],Kiadások[DÁTUM],\"<=\"&DátumVége,Kiadások[DÁTUM],\">=\"&DátumKözepe+1)","v":{"v":0,"d":"0.00 Ft"}},{"$f":"SUMIFS(Kiadások[ÖSSZEG],Kiadások[DÁTUM],\"<=\"&DátumVége,Kiadások[DÁTUM],\">=\"&DátumKözepe+1)","v":{"v":0,"d":"0.00 Ft"}},{"$f":"SUMIFS(Kiadások[ÖSSZEG],Kiadások[DÁTUM],\"<=\"&DátumVége,Kiadások[DÁTUM],\">=\"&DátumKözepe+1)","v":{"v":1075,"d":"1,075.00 Ft"}},{"$f":"SUMIFS(Kiadások[ÖSSZEG],Kiadások[DÁTUM],\"<=\"&DátumVége,Kiadások[DÁTUM],\">=\"&DátumKözepe+1)","v":{"v":5350,"d":"5,350.00 Ft"}},{"$f":"SUMIFS(Kiadások[ÖSSZEG],Kiadások[DÁTUM],\"<=\"&DátumVége,Kiadások[DÁTUM],\">=\"&DátumKözepe+1)","v":{"v":1675,"d":"1,675.00 Ft"}},{"$f":"SUMIFS(Kiadások[ÖSSZEG],Kiadások[DÁTUM],\"<=\"&DátumVége,Kiadások[DÁTUM],\">=\"&DátumKözepe+1)","v":{"v":0,"d":"0.00 Ft"}}]

{"sheet":"Kiadások és bevétel","index":1,"n_rows":40,"n_cols":10,"rows_kept":40}
[]
[null,null,"Félhavi otthoni költségvetés",{"$nulls":6},"BEVÉTEL ÉS KIADÁSOK"]
[]
[]
[]
[null,null,"BEVÉTEL",{"$nulls":3},"KIADÁSOK"]
[]
[null,null,"DÁTUM","LEÍRÁS","ÖSSZEG",null,"DÁTUM","KATEGÓRIA","LEÍRÁS","ÖSSZEG"]
[null,null,{"$f":"NOW()-14","v":"2012-12-27T16:44:26.700"},"Zsolt fizetési csekkje",{"v":1300,"d":"1,300.00 Ft"},null,{"$f":"NOW()-7","v":"2013-01-03T16:44:26.700"},"Háztartás","Jelzálog",{"v":1000,"d":"1,000.00 Ft"}]
[null,null,{"$f":"NOW()-14","v":"2012-12-27T16:44:26.700"},"Ági fizetési csekkje",{"v":1300,"d":"1,300.00 Ft"},null,{"$f":"NOW()-7","v":"2013-01-03T16:44:26.700"},"Háztartás","Áram",{"v":100,"d":"100.00 Ft"}]
[null,null,{"$f":"NOW()-28","v":"2012-12-13T16:44:26.700"},"Zsolt fizetési csekkje",{"v":1500,"d":"1,500.00 Ft"},null,"2013-01-03T16:44:26.700","Háztartás","Víz/csatorna",{"v":50,"d":"50.00 Ft"}]
[null,null,"2012-12-13T16:44:26.700","Ági fizetési csekkje",{"v":1600,"d":"1,600.00 Ft"},null,"2013-01-03T16:44:26.700","Háztartás","Szemétszállítás",{"v":25,"d":"25.00 Ft"}]
[null,null,{"$f":"NOW()-42","v":"2012-11-29T16:44:26.700"},"Zsolt fizetési csekkje",{"v":1300,"d":"1,300.00 Ft"},null,"2013-01-03T16:44:26.700","Háztartás","Mobiltelefon",{"v":100,"d":"100.00 Ft"}]
[null,null,"2012-11-29T16:44:26.700","Ági fizetési csekkje",{"v":1300,"d":"1,300.00 Ft"},null,"2013-01-03T16:44:26.700","Háztartás","Otthoni telefon",{"v":30,"d":"30.00 Ft"}]
[null,null,{"$f":"NOW()-56","v":"2012-11-15T16:44:26.700"},"Zsolt fizetési csekkje",{"v":1500,"d":"1,500.00 Ft"},null,"2013-01-03T16:44:26.700","Háztartás","Internet",{"v":50,"d":"50.00 Ft"}]
[null,null,"2012-11-15T16:44:26.700","Ági fizetési csekkje",{"v":1600,"d":"1,600.00 Ft"},null,"2013-01-03T16:44:26.700","Háztartás","Televízió",{"v":50,"d":"50.00 Ft"}]
[null,null,{"$f":"NOW()-70","v":"2012-11-01T16:44:26.700"},"Zsolt fizetési csekkje",{"v":1300,"d":"1,300.00 Ft"},null,"2013-01-03T16:44:26.700","Háztartás","Karbantartás/javítások",{"v":25,"d":"25.00 Ft"}]
[{"$nulls":6},{"$f":"NOW()-8","v":"2013-01-02T16:44:26.700"},"Háztartás","1. hitelkártya ",{"v":100,"d":"100.00 Ft"}]
[{"$nulls":6},{"$f":"NOW()-9","v":"2013-01-01T16:44:26.700"},"Szórakozás","Filmek",{"v":37,"d":"37.00 Ft"}]
[{"$nulls":6},{"$f":"NOW()-10","v":"2012-12-31T16:44:26.700"},"Élelmiszer","Élelmiszerek",{"v":350,"d":"350.00 Ft"}]
[{"$nulls":6},{"$f":"NOW()-11","v":"2012-12-30T16:44:26.700"},"Élelmiszer","Vendéglőben étkezés",{"v":75,"d":"75.00 Ft"}]
[{"$nulls":6},{"$f":"NOW()-12","v":"2012-12-29T16:44:26.700"},"Gyermekek","Ebédpénz",{"v":150,"d":"150.00 Ft"}]
[{"$nulls":6},{"$f":"NOW()-13","v":"2012-12-28T16:44:26.700"},"Befektetési számlák","Megtakarítás",{"v":250,"d":"250.00 Ft"}]
[{"$nulls":6},{"$f":"NOW()-14","v":"2012-12-27T16:44:26.700"},"Befektetési számlák","Befektetési számla",{"v":250,"d":"250.00 Ft"}]
[{"$nulls":6},{"$f":"NOW()-15","v":"2012-12-26T16:44:26.700"},"Személyes","Egészségmegőrző klub",{"v":100,"d":"100.00 Ft"}]
[{"$nulls":6},{"$f":"NOW()-16","v":"2012-12-25T16:44:26.700"},"Háziállatok","Élelmiszer",{"v":50,"d":"50.00 Ft"}]
[{"$nulls":6},{"$f":"NOW()-20","v":"2012-12-21T16:44:26.700"},"Háziállatok","Tisztálkodás",{"v":50,"d":"50.00 Ft"}]
[{"$nulls":6},{"$f":"NOW()-20","v":"2012-12-21T16:44:26.700"},"Háziállatok","Egyéb",{"v":50,"d":"50.00 Ft"}]
[{"$nulls":6},{"$f":"NOW()-25","v":"2012-12-16T16:44:26.700"},"Közlekedés","1. autótörlesztés ",{"v":300,"d":"300.00 Ft"}]
[{"$nulls":6},{"$f":"NOW()-25","v":"2012-12-16T16:44:26.700"},"Közlekedés","2. autótörlesztés ",{"v":350,"d":"350.00 Ft"}]
[{"$nulls":6},{"$f":"NOW()-25","v":"2012-12-16T16:44:26.700"},"Közlekedés","Gépjármű felelősségbiztosítás",{"v":50,"d":"50.00 Ft"}]
[{"$nulls":6},{"$f":"NOW()-30","v":"2012-12-11T16:44:26.700"},"Közlekedés","Üzemanyag",{"v":50,"d":"50.00 Ft"}]
[{"$nulls":6},{"$f":"NOW()-31","v":"2012-12-10T16:44:26.700"},"Közlekedés","Üzemanyag",{"v":25,"d":"25.00 Ft"}]
[{"$nulls":6},{"$f":"NOW()-42","v":"2012-11-29T16:44:26.700"},"Közlekedés","Karbantartás/javítások",{"v":150,"d":"150.00 Ft"}]
[{"$nulls":6},{"$f":"NOW()-45","v":"2012-11-26T16:44:26.700"},"Háztartás","Jelzálog",{"v":5000,"d":"5,000.00 Ft"}]
[{"$nulls":6},{"$f":"NOW()-50","v":"2012-11-21T16:44:26.700"},"Háztartás","Kellékek",{"v":200,"d":"200.00 Ft"}]
[{"$nulls":6},{"$f":"NOW()-65","v":"2012-11-06T16:44:26.700"},"Háztartás","Otthoni telefon",{"v":100,"d":"100.00 Ft"}]
[{"$nulls":6},{"$f":"NOW()-70","v":"2012-11-01T16:44:26.700"},"Háztartás","Szemétszállítás",{"v":50,"d":"50.00 Ft"}]
[{"$nulls":6},{"$f":"NOW()-75","v":"2012-10-27T16:44:26.700"},"Háztartás","Jelzálog",{"v":1000,"d":"1,000.00 Ft"}]
[{"$nulls":6},{"$f":"NOW()-78","v":"2012-10-24T16:44:26.700"},"Szórakozás","Filmek",{"v":75,"d":"75.00 Ft"}]

{"sheet":"Költségvetési jelentés","index":2,"n_rows":41,"n_cols":8,"rows_kept":41}
[]
[null,null,"Félhavi otthoni költségvetés",{"$nulls":4},"KÖLTSÉGVETÉSI JELENTÉS"]
{"$rows_empty":10}
[null,null,"KIADÁSOK",null,null,"KATEGÓRIA ÖSSZESEN"]
[]
[null,null,"LEÍRÁS","ÖSSZESEN"]
[null,null,"1. autótörlesztés ",{"v":300,"d":"300.00 Ft"}]
[null,null,"1. hitelkártya ",{"v":100,"d":"100.00 Ft"}]
[null,null,"2. autótörlesztés ",{"v":350,"d":"350.00 Ft"}]
[null,null,"Áram",{"v":100,"d":"100.00 Ft"}]
[null,null,"Befektetési számla",{"v":250,"d":"250.00 Ft"}]
[null,null,"Ebédpénz",{"v":150,"d":"150.00 Ft"}]
[null,null,"Egészségmegőrző klub",{"v":100,"d":"100.00 Ft"}]
[null,null,"Egyéb",{"v":50,"d":"50.00 Ft"}]
[null,null,"Élelmiszer",{"v":50,"d":"50.00 Ft"}]
[null,null,"Élelmiszerek",{"v":350,"d":"350.00 Ft"}]
[null,null,"Filmek",{"v":112,"d":"112.00 Ft"}]
[null,null,"Gépjármű felelősségbiztosítás",{"v":50,"d":"50.00 Ft"}]
[null,null,"Internet",{"v":50,"d":"50.00 Ft"}]
[null,null,"Jelzálog",{"v":7000,"d":"7,000.00 Ft"}]
[null,null,"Karbantartás/javítások",{"v":175,"d":"175.00 Ft"}]
[null,null,"Kellékek",{"v":200,"d":"200.00 Ft"}]
[null,null,"Megtakarítás",{"v":250,"d":"250.00 Ft"}]
[null,null,"Mobiltelefon",{"v":100,"d":"100.00 Ft"}]
[null,null,"Otthoni telefon",{"v":130,"d":"130.00 Ft"}]
[null,null,"Szemétszállítás",{"v":75,"d":"75.00 Ft"}]
[null,null,"Televízió",{"v":50,"d":"50.00 Ft"}]
[null,null,"Tisztálkodás",{"v":50,"d":"50.00 Ft"}]
[null,null,"Üzemanyag",{"v":75,"d":"75.00 Ft"}]
[null,null,"Vendéglőben étkezés",{"v":75,"d":"75.00 Ft"}]
[null,null,"Víz/csatorna",{"v":50,"d":"50.00 Ft"}]
[null,null,"ÖSSZESEN",{"v":10242,"d":"10,242.00 Ft"}]

{"sheet":"Adatlisták","index":3,"n_rows":20,"n_cols":14,"rows_kept":20}
[]
[null,null,"Félhavi otthoni költségvetés",{"$nulls":10},"ADATLISTÁK"]
[]
[]
[null,null,"BEÁLLÍTÁS         A Kiadások és bevétel lapon lévő Kiadások táblázat legördülő listáit az alábbi kategóriaadatok töltik ki. A listák frissítéséhez módosítsa az egyes kategóriák alatt lévő kategórianeveket vagy leírásokat."]
[]
[null,null,"Háztartás","Szórakozás","Élelmiszer","Ajándékok/adományok","Gyermekek","Befektetési számlák","Orvosi","Egyéb","Személyes","Háziállatok","Adók/jogi","Közlekedés"]
[null,null,"Jelzálog","Filmek","Élelmiszerek","Jótékonyság 1","Ruházat","IRA","Orvos/klinika","Egyéb","Ruházat","Élelmiszer",null,"1. autótörlesztés "]
[null,null,"Áram","Videók/filmek","Vendéglőben étkezés","Jótékonyság 2","Játékok","Megtakarítás","Biztosítás","Tagdíjak","Haj/körömápolás","Kellékek","Megye","2. autótörlesztés "]
[null,null,"Víz/csatorna","Zene",null,"Jótékonyság 3","Ebédpénz","Folyószámla",null,null,"Vegytisztítás","Orvosi","Helyi","Gépjármű felelősségbiztosítás"]
[null,null,"Szemétszállítás","Koncertek/színház",null,"Ajándék","Díjak","Nyugdíj",null,null,"Egészségmegőrző klub","Tisztálkodás","Egyéb","Licencelés/regisztráció"]
[null,null,"Mobiltelefon","Sportesemények",null,null,"Iskolai felszerelés","Befektetési számla",null,null,"Vásárlás","Egyéb","Ügyvéd","Üzemanyag"]
[null,null,"Otthoni telefon","Egyéb",null,null,"Egyéb","Főiskola",null,null,"Egyéb",null,"Gyerektartás","Karbantartás/javítások"]
[null,null,"Internet",{"$nulls":3},"Tisztító","Hitelek",{"$nulls":4},"Tartásdíj","Tömegközlekedés"]
[null,null,"Televízió",{"$nulls":4},"Diákhitelek",{"$nulls":4},"Egyéb"]
[null,null,"Karbantartás/javítások"]
[null,null,"Kellékek"]
[null,null,"Kábel/Internet/Telefon"]
[null,null,"1. hitelkártya "]
[null,null,"2. hitelkártya "]

{"sheet":"Kategória kimutatás","index":4,"n_rows":16,"n_cols":14,"rows_kept":16,"hidden":true}
[]
[null,null,"Félhavi otthoni költségvetés",{"$nulls":10},"KATEGÓRIA KIMUTATÁS"]
[]
[]
[null,"Ez a kimutatás a Költségvetési jelentés lapon lévő Kategória összes diagramkimutatás adatforrása. "]
[]
[null,null,"Popisky řádků","Összeg / ÖSSZEG"]
[null,null,"Befektetési számlák",{"v":500,"d":"500 Ft"}]
[null,null,"Élelmiszer",{"v":425,"d":"425 Ft"}]
[null,null,"Gyermekek",{"v":150,"d":"150 Ft"}]
[null,null,"Háziállatok",{"v":150,"d":"150 Ft"}]
[null,null,"Háztartás",{"v":7880,"d":"7,880 Ft"}]
[null,null,"Közlekedés",{"v":925,"d":"925 Ft"}]
[null,null,"Személyes",{"v":100,"d":"100 Ft"}]
[null,null,"Szórakozás",{"v":112,"d":"112 Ft"}]
[null,null,"Celkový součet",{"v":10242,"d":"10,242 Ft"}]